bitfinex/quotes_ETHUSD_20251004
["timestamp","ask_amount","ask_price","bid_price","bid_amount"]
[1759583434220,2.66305728,4505.2,4505.1,2.512]
[1759583434720,0.4434,4505.2,4505.1,0.001]
[1759583434923,2.66305728,4505.2,4505.1,0.001]
[1759583435122,3.16410568,4505.2,4505.1,2.512]
[1759583436085,3.16410568,4505.2,4505.1,0.001]
[1759583438183,3.79770568,4505.2,4505.1,0.001]
[1759583438487,3.81436498,4505.2,4505.1,0.001]
[1759583439552,6.21436498,4505.2,4505.1,0.001]
[1759583439727,6.19770568,4505.2,4505.1,0.001]
[1759583440948,8.70870568,4505.2,4505.1,0.001]
[1759583441530,6.19770568,4505.2,4505.1,0.001]
[1759583444860,8.70870568,4505.2,4505.1,0.001]
[1759583447543,6.19770568,4505.2,4505.1,0.001]
[1759583447743,8.70770568,4505.2,4505.1,0.001]
[1759583447953,8.37550568,4505.2,4505.1,0.001]
[1759583448771,8.81890568,4505.2,4505.1,0.001]
[1759583452188,8.37550568,4505.2,4505.1,0.001]
[1759583452787,8.82490568,4505.2,4505.1,0.001]
[1759583453973,8.37550568,4505.2,4505.1,0.001]
[1759583455782,5.86550568,4505.2,4505.1,0.001]
[1759583455982,8.37550568,4505.2,4505.1,0.001]
[1759583456682,2.83190568,4505.2,4505.1,0.001]
[1759583456890,2.34751658,4505.2,4505.1,0.001]
[1759583457085,0.1278593,4505.2,4505.1,0.4516]
[1759583457289,2.34751658,4505.2,4505.1,0.4516]
[1759583459117,2.33085728,4505.2,4505.1,0.001]
[1759583459427,2.34751658,4505.2,4505.1,0.001]
[1759583460629,2.34751658,4505.2,4505.1,0.4516]
[1759583462420,0.1278593,4505.2,4505.1,0.4516]
[1759583462741,2.33085728,4505.2,4505.1,0.4516]
[1759583462947,2.34751658,4505.2,4505.1,0.4516]
[1759583463343,0.1112,4505.2,4505.1,0.4516]
[1759583464056,0.0166593,4506.2,4505.1,0.4516]
[1759583464257,0.1112,4505.6,4505.1,0.4516]
[1759583464467,0.1112,4505.6,4505.2,0.02219657]
[1759583464765,0.1112,4505.8,4505.3,0.4506]
[1759583464949,0.1112,4505.8,4505.4,2.51]
[1759583465349,0.1112,4505.8,4505.5,0.4506]
[1759583465526,2.33056894,4505.8,4505.5,0.4506]
[1759583465743,0.0166593,4505.7,4505.5,0.4506]
[1759583465949,2.21946022,4505.6,4505.1,0.001]
[1759583466266,0.1278593,4505.5,4505.2,2.509]
[1759583466467,2.21955875,4505.4,4505.2,2.9596]
[1759583466668,0.0166593,4505.3,4505.2,1.74606]
[1759583466841,0.0166593,4505.3,4505.2,2.509]
[1759583467272,0.1112,4505.5,4505.2,2.9596]
[1759583467273,2.33071746,4505.5,4505.2,2.9596]
[1759583467586,0.1112,4505.5,4505.3,0.4506]
[1759583467802,2.23621805,4505.4,4505.3,2.509]
[1759583468398,2.23621805,4505.4,4505.3,2.9596]
[1759583468569,2.21955875,4505.4,4505.3,0.4506]
[1759583468894,2.21955875,4505.4,4505.3,2.9596]
[1759583470089,2.33072208,4505.5,4505.3,2.9596]
[1759583470294,2.33072208,4505.5,4505.4,0.4506]
[1759583470970,2.33072208,4505.5,4505.4,2.9596]
[1759583471680,2.33072208,4505.5,4505.4,0.4506]
[1759583471879,2.33072208,4505.5,4505.4,2.9596]
[1759583473193,2.33072208,4505.5,4505.4,2.509]
[1759583473429,2.34738138,4505.5,4505.4,2.509]
[1759583474625,2.21958488,4505.4,4505.1,0.001]
[1759583474826,2.21958488,4505.4,4505.2,2.509]
[1759583475220,0.0166593,4505.3,4505.2,2.9596]
[1759583475418,2.21965728,4505.2,4505.1,0.001]
[1759583475621,3.23696974,4505.2,4505.1,0.001]
[1759583475846,3.25362904,4505.2,4505.1,0.001]
[1759583476143,3.25362904,4505.2,4505.1,2.51]
[1759583478658,3.25362904,4505.2,4505.1,0.001]
[1759583481661,3.88722904,4505.2,4505.1,0.001]
[1759583484787,6.28722904,4505.2,4505.1,0.001]
[1759583484943,6.27056974,4505.2,4505.1,0.001]
[1759583485144,6.93700759,4505.2,4505.1,0.001]
[1759583488975,2.22039656,4503.7,4503.6,0.001]
[1759583489299,2.23705586,4503.7,4503.6,0.001]
[1759583492408,2.69435586,4503.7,4503.6,0.001]
[1759583493593,2.23705586,4503.7,4503.6,0.001]
[1759583494112,2.69435586,4503.7,4503.6,0.001]
[1759583494310,3.15106832,4503.7,4503.6,0.001]
[1759583494811,3.81762907,4503.7,4503.6,0.001]
[1759583495189,3.36032907,4503.7,4503.6,0.001]
[1759583495385,3.99392907,4503.7,4503.6,0.001]
[1759583495715,4.45122907,4503.7,4503.6,0.001]
[1759583495888,4.43456977,4503.7,4503.6,0.001]
[1759583497225,3.97726977,4503.7,4503.6,0.001]
[1759583497394,3.99392907,4503.7,4503.6,0.001]
[1759583498923,4.10512907,4503.7,4503.6,0.001]
[1759583499609,4.56242907,4503.7,4503.6,0.001]
[1759583499819,4.54576977,4503.7,4503.6,0.001]
[1759583504225,14.53767879,4503.7,4503.6,0.001]
[1759583506134,2.22094187,4502.6,4502.1,0.01]
[1759583506434,2.33233633,4502.2,4502.1,0.01]
[1759583506609,2.34899563,4502.2,4502.1,0.4699]
[1759583507290,2.34899563,4502.2,4502.1,0.01]
[1759583508100,2.34899563,4502.2,4502.1,0.4699]
[1759583509112,2.34899563,4502.2,4502.1,0.01]
[1759583510053,3.43930809,4502.2,4502.1,0.01]
[1759583510253,5.83930809,4502.2,4502.1,0.01]
[1759583510456,5.83930809,4502.2,4502.1,0.011]
[1759583510457,6.27994879,4502.2,4502.1,0.011]
[1759583511214,5.82264879,4502.2,4502.1,0.011]
[1759583513165,8.79654879,4502.2,4502.1,0.011]
[1759583514666,8.33264879,4502.2,4502.1,0.011]
[1759583514873,2.78904879,4502.2,4502.1,0.4778]
[1759583515052,2.34899563,4502.2,4502.1,0.4778]
[1759583517756,0.6056593,4502.2,4502.1,0.4778]
[1759583518156,0.1278593,4502.2,4502.1,0.4778]
[1759583518390,0.6336,4503.3,4502.1,0.4778]
[1759583518391,0.4778,4502.4,4502.1,0.4778]
[1759583518877,0.0166593,4502.5,4502.1,0.4778]
[1759583519383,2.23765992,4502.5,4502.1,0.4778]
[1759583519961,0.0166593,4502.5,4502.1,0.4778]
[1759583520672,0.0166593,4503.0,4502.2,0.02221136]
[1759583520843,0.0186593,4504.1,4502.3,0.4668]
[1759583521049,2.22054856,4503.4,4502.4,0.02221037]
[1759583521250,0.66655779,4503.5,4502.5,0.4668]
[1759583521251,0.0166593,4503.3,4502.5,0.4668]
[1759583521747,2.2206526,4503.2,4502.5,0.4668]
[1759583522078,2.22103766,4502.4,4502.3,0.4668]
[1759583522548,0.0166593,4502.5,4502.3,0.4668]
[1759583522753,2.22094486,4502.6,4502.4,0.4668]
[1759583522993,0.0166593,4502.5,4502.1,0.011]
[1759583523186,2.23766444,4502.5,4502.2,2.511]
[1759583523446,2.23766444,4502.5,4502.1,0.011]
[1759583523651,0.0166593,4502.5,4502.3,0.4668]
[1759583523920,2.22095092,4502.6,4502.4,0.4668]
[1759583524046,2.22095092,4502.6,4502.3,2.511]
[1759583524047,0.0166593,4502.5,4502.3,2.511]
[1759583524247,0.0166593,4502.5,4502.1,0.011]
[1759583524448,0.0166593,4502.5,4502.2,2.9778]
[1759583524649,2.22108699,4502.3,4502.2,2.511]
[1759583524885,2.23774629,4502.3,4502.2,2.511]
[1759583525050,0.0166593,4502.3,4502.2,2.9778]
[1759583525255,2.23760454,4502.6,4502.2,2.9778]
[1759583525469,2.23760454,4502.6,4502.3,0.4668]
[1759583525790,2.23760454,4502.6,4502.4,0.4668]
[1759583526003,2.22104667,4502.4,4502.2,2.511]
[1759583526150,0.0166593,4502.3,4502.2,2.9778]
[1759583526550,2.22093901,4502.6,4502.2,2.9778]
[1759583526793,0.0166593,4502.5,4502.3,0.4668]
[1759583527090,2.23765311,4502.5,4502.2,2.511]
[1759583527296,2.23765311,4502.5,4502.3,0.4668]
[1759583527586,2.74276371,4502.5,4502.3,0.4668]
[1759583527966,2.23765311,4502.5,4502.3,0.4668]
[1759583528164,0.0166593,4502.5,4502.2,2.511]
[1759583528367,0.0166593,4502.6,4502.4,0.4668]
[1759583529002,2.33219781,4502.5,4502.4,0.4668]
[1759583529155,2.22104553,4502.4,4502.2,2.511]
[1759583529489,0.0166593,4502.3,4502.2,2.511]
[1759583529852,2.2377489,4502.3,4502.1,0.011]
[1759583530214,0.0166593,4502.3,4502.2,2.51]
[1759583530356,2.81354662,4502.6,4502.2,2.51]
[1759583530553,0.1112,4502.3,4502.2,2.51]
[1759583531256,0.1112,4502.3,4502.2,2.9768]
[1759583533502,0.1278593,4502.3,4502.2,2.9768]
[1759583533708,0.1112,4502.3,4502.2,2.9768]
[1759583536946,2.22029877,4503.9,4502.2,2.9768]
[1759583536947,0.1112,4502.8,4502.2,0.29878]
[1759583537088,0.1112,4502.8,4502.3,0.02221086]
[1759583537287,0.1112,4502.8,4502.4,0.4668]
[1759583537593,0.1112,4502.8,4502.5,14.52220988]
[1759583537811,0.1112,4502.8,4502.6,0.48900939]
[1759583538120,0.1112,4502.8,4502.7,2.51]
[1759583538316,0.1112,4503.2,4502.7,2.80990094]
[1759583538521,0.1112,4503.2,4502.8,0.4890084]
[1759583538899,0.002,4503.6,4502.9,0.1112]
[1759583538900,0.1112,4503.5,4502.9,0.1112]
[1759583539098,0.1112,4503.5,4503.0,0.02220741]
[1759583539331,0.002,4503.6,4503.0,0.4668]
[1759583539643,0.002,4503.6,4503.1,2.51]
[1759583539796,0.002,4503.6,4503.2,0.98398704]
[1759583539988,0.002,4503.6,4503.2,0.85918716]
[1759583540190,0.002,4503.6,4503.3,0.4668]
[1759583540487,0.002,4503.6,4503.5,0.1112]
[1759583540805,0.002,4503.6,4503.5,2.6212]
[1759583541019,0.002,4503.6,4503.5,3.53525859]
[1759583543827,0.1132,4504.1,4503.5,6.56885859]
[1759583544036,0.1132,4504.1,4504.0,2.22024866]
[1759583544037,0.002,4504.1,4504.0,2.22024866]
[1759583544239,0.002,4504.1,4504.0,7.15245114]
[1759583544409,0.002,4504.1,4504.0,8.16954854]
[1759583544613,0.002,4504.1,4504.0,9.28725092]
[1759583545072,0.002,4504.6,4504.1,3.0336]
[1759583545225,0.002,4504.6,4504.2,0.0222015]
[1759583545424,0.002,4504.6,4504.3,4.73009217]
[1759583545826,0.002,4504.6,4504.5,2.22000222]
[1759583546038,0.002,4504.6,4504.5,2.96200137]
[1759583546236,0.002,4504.6,4504.5,5.80970137]
[1759583549323,0.002,4504.6,4504.5,8.31870137]
[1759583553460,0.002,4504.6,4504.5,8.95230137]
[1759583553661,0.01,4504.9,4504.5,8.95230137]
[1759583553960,0.01,4504.9,4504.7,0.6336]
[1759583554159,0.01,4504.9,4504.8,2.6202]
[1759583554367,0.01,4504.9,4504.8,3.0486]
[1759583554935,0.01,4504.9,4504.8,5.26845437]
[1759583555372,0.01,4504.9,4504.8,3.0486]
[1759583555533,0.01,4504.9,4504.8,4.23473109]
[1759583555723,0.01,4504.9,4504.8,1.27513255]
[1759583556100,0.01,4504.9,4504.8,2.6202]
[1759583557165,0.01,4504.9,4504.8,3.0486]
[1759583557473,0.01,4504.9,4504.8,3.07079854]
[1759583558129,0.01,4504.9,4504.8,2.6202]
[1759583560559,0.01,4504.9,4504.8,2.64239854]
[1759583560784,0.01,4504.9,4504.8,0.1112]
[1759583561172,0.01,4504.9,4504.8,2.6202]
[1759583561369,0.01,4504.9,4504.8,3.14705504]
[1759583564772,0.012,4504.9,4504.8,3.14705504]
[1759583567085,0.012,4504.9,4504.8,3.16925358]
[1759583567286,0.012,4504.9,4504.8,3.73704335]
[1759583569181,0.012,4504.9,4504.8,3.14705504]
[1759583569896,0.012,4504.9,4504.8,0.1112]
[1759583570097,0.4801,4504.9,4504.8,2.508]
[1759583571172,0.4801,4504.9,4504.8,3.09863415]
[1759583571370,2.6999051,4504.9,4504.8,0.59063415]
[1759583571684,2.8277644,4504.9,4504.8,2.508]
[1759583571996,2.8277644,4504.9,4504.6,0.001]
[1759583571997,2.21990365,4504.7,4504.6,0.001]
[1759583572176,2.23656295,4504.7,4504.6,2.509]
[1759583572376,2.68846295,4504.7,4504.6,2.509]
[1759583573504,2.68846295,4504.7,4504.6,0.001]
[1759583573676,3.24210476,4504.7,4504.6,0.001]
[1759583574423,7.47082086,4504.7,4504.6,0.001]
[1759583574629,7.45416156,4504.7,4504.6,0.001]
[1759583575370,3.22544546,4504.7,4504.6,0.001]
[1759583575501,3.24210476,4504.7,4504.6,0.001]
[1759583579219,3.87570476,4504.7,4504.6,0.001]
[1759583580024,8.78470476,4504.7,4504.6,0.001]
[1759583580224,8.76804546,4504.7,4504.6,0.001]
[1759583584594,12.95804546,4504.7,4504.6,0.001]
[1759583587569,13.04692279,4504.7,4504.6,0.001]
[1759583596656,13.04692279,4504.7,4503.6,1e-08]
[1759583596657,0.6336,4504.4,4503.6,1e-08]
[1759583596895,4.62039656,4503.7,4503.6,1e-08]
[1759583598419,7.12939656,4503.7,4503.6,1e-08]
[1759583599007,8.21489656,4503.7,4503.6,1e-08]
[1759583599165,8.66369656,4503.7,4503.6,1e-08]
[1759583599365,9.16864665,4503.7,4503.6,1e-08]
[1759583600106,0.6336,4503.6,4501.8,0.001]
[1759583600412,2.22113633,4502.2,4501.8,0.001]
[1759583600599,2.23779563,4502.2,4501.8,0.001]
[1759583601976,6.9123981,4502.2,4501.8,0.001]
[1759583602215,9.4047388,4502.2,4502.1,1e-08]
[1759583605140,9.8480388,4502.2,4502.1,1e-08]
[1759583606816,9.9592388,4502.2,4502.1,1e-08]
[1759583607341,3.2215227,4502.2,4502.1,1e-08]
[1759583607549,2.34899563,4502.2,4502.1,0.44230001]
[1759583614846,2.34899563,4502.2,4502.1,1e-08]
[1759583618576,2.33233633,4502.2,4502.1,0.45640001]
[1759583620388,0.1132,4502.2,4502.1,0.45640001]
[1759583621544,2.33433633,4502.2,4502.1,0.45640001]
[1759583629884,2.33433633,4502.2,4502.1,1e-08]
[1759583633179,2.33433633,4502.2,4502.1,2.51000001]
[1759583639620,0.1132,4502.2,4502.1,2.51000001]
[1759583639818,0.002,4502.2,4502.1,4.70456001]
[1759583641795,0.002,4502.2,4502.1,5.49168645]
[1759583642293,0.002,4502.2,4502.1,4.70456001]
[1759583642495,0.002,4502.2,4502.1,5.49168645]
[1759583642810,0.002,4502.2,4502.1,3.74572645]
[1759583643016,0.002,4502.2,4502.1,18.24572645]
[1759583644526,0.002,4502.2,4502.1,17.45860001]
[1759583648620,0.002,4502.2,4502.1,17.01000001]
[1759583648937,0.002,4502.2,4502.1,17.60313893]
[1759583649142,0.002,4502.2,4502.1,19.44226547]
[1759583649744,0.002,4502.2,4502.1,19.55346547]
[1759583651212,2.22313633,4502.2,4502.1,15.09313893]
[1759583651539,2.69693633,4502.2,4502.1,17.00900001]
[1759583652312,2.69693633,4502.2,4502.1,2.50900001]
[1759583654542,2.69693633,4502.2,4502.1,1e-08]
[1759583656368,2.22313633,4502.2,4502.1,1e-08]
[1759583658040,2.69693633,4502.2,4502.1,1e-08]
[1759583660012,3.19040279,4502.2,4502.1,1e-08]
[1759583660429,2.22162978,4501.2,4501.1,1e-08]
[1759583660630,2.23828908,4501.2,4501.1,1e-08]
[1759583660812,2.69448908,4501.2,4501.1,1e-08]
[1759583661213,3.18609397,4501.2,4501.1,1e-08]
[1759583661435,2.67744126,4502.0,4501.1,1e-08]
[1759583661635,0.002,4502.2,4501.1,0.43250001]
[1759583661960,0.0166593,4501.9,4501.1,0.4547168]
[1759583662173,2.22154181,4501.4,4501.1,0.4547168]
[1759583662378,2.22154181,4501.4,4501.2,14.5]
[1759583662581,0.1112,4501.5,4501.2,14.5]
[1759583662582,0.1112,4501.5,4501.3,0.4547158]
[1759583662775,0.1112,4501.7,4501.4,2.509]
[1759583662934,0.1112,4501.7,4501.4,2.53121531]
[1759583662935,2.22143357,4501.6,4501.4,2.53121531]
[1759583663141,2.3325933,4501.7,4501.4,2.96371531]
[1759583663776,2.22143273,4501.6,4501.4,2.96371531]
[1759583664285,2.22148172,4501.5,4501.4,2.53121531]
[1759583664447,2.22143907,4501.6,4501.4,2.509]
[1759583664648,2.22148172,4501.5,4501.4,2.509]
[1759583665765,0.1112,4501.7,4501.4,2.509]
[1759583665972,2.22144478,4501.6,4501.4,2.509]
[1759583666167,0.1112,4501.7,4501.4,2.509]
[1759583666383,2.33258822,4501.7,4501.4,2.509]
[1759583666624,2.22146964,4501.6,4501.4,2.509]
[1759583666826,2.22148172,4501.5,4501.4,2.509]
[1759583667113,0.1112,4501.7,4501.4,2.509]
[1759583667314,2.33259369,4501.7,4501.4,2.509]
[1759583667501,2.22148172,4501.5,4501.4,2.509]
[1759583667705,0.1112,4501.7,4501.4,2.509]
[1759583667888,2.22148172,4501.5,4501.4,2.509]
[1759583669674,3.19148442,4501.5,4501.4,2.509]
[1759583669984,3.19148442,4501.5,4501.1,1e-08]
[1759583669985,2.22162978,4501.2,4501.1,1e-08]
[1759583670300,2.33282978,4501.2,4501.1,2.50900001]
[1759583670499,2.79912978,4501.2,4501.1,2.50900001]
[1759583670670,3.57538327,4501.2,4501.1,2.50900001]
[1759583670870,2.79912978,4501.2,4501.1,2.50900001]
[1759583671117,2.33282978,4501.2,4501.1,2.50900001]
[1759583671970,2.33282978,4501.2,4501.1,2.51000001]
[1759583678234,2.79912978,4501.2,4501.1,2.51000001]
[1759583682307,2.79912978,4501.2,4501.1,0.00100001]
[1759583682495,3.3534351,4501.2,4501.1,0.00100001]
[1759583684724,3.2422351,4501.2,4501.1,0.00100001]
[1759583685105,5.7512351,4501.2,4501.1,0.00100001]
[1759583685910,3.2422351,4501.2,4501.1,0.00100001]
[1759583686116,3.2588944,4501.2,4501.1,0.00100001]
[1759583686302,5.7678944,4501.2,4501.1,0.00100001]
[1759583686502,5.7512351,4501.2,4501.1,0.00100001]
[1759583688297,3.2422351,4501.2,4501.1,0.00100001]
[1759583688593,3.2588944,4501.2,4501.1,0.00100001]
[1759583689736,3.2608944,4501.2,4501.1,0.00100001]
[1759583691213,5.7698944,4501.2,4501.1,0.00100001]
[1759583691415,5.7532351,4501.2,4501.1,0.00100001]
[1759583694673,5.8644351,4501.2,4501.1,0.00100001]
[1759583695056,5.8644351,4501.2,4500.6,1e-08]
[1759583695057,4.23934425,4500.8,4500.6,1e-08]
[1759583695280,2.23853589,4500.7,4500.6,1e-08]
[1759583700201,5.07373589,4500.7,4500.6,1e-08]
[1759583700365,5.05707659,4500.7,4500.6,1e-08]
[1759583700701,7.56707659,4500.7,4500.6,1e-08]
[1759583700900,8.17012856,4500.7,4500.6,1e-08]
[1759583701604,7.73492856,4500.7,4500.6,1e-08]
[1759583703996,5.22492856,4500.7,4500.6,1e-08]
[1759583706626,7.01492856,4500.7,4500.6,1e-08]
[1759583707644,0.1112,4500.7,4500.6,0.46970001]
[1759583708289,0.1112,4500.7,4500.6,0.9086198]
[1759583708491,0.1112,4501.1,4500.6,0.93083905]
[1759583708692,0.1112,4501.1,4500.7,0.4697]
[1759583708916,2.33288536,4501.1,4500.8,0.02221827]
[1759583709119,2.33288536,4501.1,4500.9,0.4697]
[1759583709630,0.1112,4501.1,4501.0,0.02221728]
[1759583709830,0.002,4501.2,4501.0,0.49191728]
[1759583710190,0.002,4501.2,4501.1,0.4697]
[1759583710896,0.002,4501.2,4501.1,0.60872437]
[1759583711433,0.002,4501.2,4501.1,0.4697]
[1759583713740,0.002,4501.2,4501.1,14.9697]
[1759583714438,0.002,4501.2,4501.1,15.0809]
[1759583716041,0.002,4501.2,4501.1,17.5899]
[1759583716957,0.002,4501.2,4501.1,19.9899]
[1759583717155,0.002,4501.2,4501.1,22.211072]
[1759583718648,0.002,4501.2,4501.1,25.06635114]
[1759583718984,0.002,4501.2,4501.1,34.70436941]
[1759583719179,0.002,4501.2,4501.1,31.61048985]
[1759583719364,0.002,4501.2,4501.1,32.11513679]
[1759583719678,0.002,4501.2,4501.1,30.59012741]
[1759583719831,0.002,4501.2,4501.1,20.61559428]
[1759583720036,0.002,4501.2,4501.1,19.9899]
[1759583720452,0.002,4501.2,4501.1,2.5112]
[1759583720683,0.002,4501.2,4501.1,5.0202]
[1759583720887,0.002,4501.2,4501.1,5.4758]
[1759583722770,0.002,4501.2,4501.1,5.3646]
[1759583722995,0.002,4501.2,4501.1,7.46226]
[1759583723807,0.002,4501.2,4501.1,10.31753914]
[1759583724011,0.002,4501.2,4501.1,10.59746142]
[1759583724515,0.002,4501.2,4501.1,31.08625287]
[1759583724814,0.002,4501.2,4501.1,30.58200941]
[1759583725443,0.002,4501.2,4501.1,44.47990779]
[1759583726273,0.002,4501.2,4501.1,43.29933441]
[1759583726473,0.002,4501.2,4501.1,45.10741741]
[1759583727373,0.002,4501.2,4501.1,44.55496341]
[1759583727586,0.002,4501.2,4501.1,44.62191679]
[1759583727801,0.002,4501.2,4501.1,43.91933279]
[1759583727998,0.002,4501.2,4501.1,42.96105379]
[1759583728380,0.002,4501.2,4501.1,44.77145979]
[1759583728580,0.002,4501.2,4501.1,42.78280079]
[1759583728883,0.002,4501.2,4501.1,37.50908479]
[1759583729538,0.002,4501.2,4501.1,41.90341451]
[1759583729846,0.002,4501.2,4501.1,39.45336351]
[1759583730046,0.002,4501.2,4501.1,30.31484851]
[1759583730251,0.002,4501.2,4501.1,23.03351252]
[1759583730492,0.002,4501.2,4501.1,27.83339052]
[1759583730748,0.002,4501.2,4501.1,28.04495552]
[1759583731557,0.002,4501.2,4501.1,31.94675852]
[1759583731940,0.002,4501.2,4501.1,29.18756452]
[1759583732125,0.002,4501.2,4501.1,27.88669552]
[1759583732465,0.002,4501.2,4501.1,28.23826014]
[1759583732747,0.002,4501.2,4501.1,28.51818242]
[1759583733125,0.002,4501.2,4501.1,27.29982442]
[1759583733315,0.002,4501.2,4501.1,27.39054642]
[1759583733518,0.002,4501.2,4501.1,30.0988778]
[1759583734543,0.002,4501.2,4501.1,32.87586942]
[1759583734921,0.002,4501.2,4501.1,32.45591642]
[1759583735121,0.002,4501.2,4501.1,31.64619442]
[1759583735447,0.002,4501.2,4501.1,29.00059614]
[1759583735652,0.002,4501.2,4501.1,28.71077414]
[1759583736410,0.002,4501.2,4501.1,28.99069642]
[1759583736656,0.002,4501.2,4501.1,33.39191141]
[1759583737462,1e-08,4501.7,4501.2,5.25522978]
[1759583737637,1e-08,4501.7,4501.6,5.25503237]
[1759583737848,1e-08,4501.7,4501.6,21.58220937]
[1759583738053,1e-08,4501.7,4501.6,36.53015965]
[1759583738797,1e-08,4501.7,4501.6,39.12045965]
[1759583739730,1e-08,4501.7,4501.6,46.27269993]
[1759583739930,1e-08,4501.7,4501.6,48.55031891]
[1759583740231,1e-08,4501.7,4501.6,48.8331979]
[1759583740651,1e-08,4501.7,4501.6,57.2411999]
[1759583741156,0.002,4502.0,4501.9,5.25488434]
[1759583741352,0.002,4502.0,4501.9,34.73596462]
[1759583741669,0.002,4502.0,4501.9,34.61185762]
[1759583742654,0.002,4502.0,4501.9,36.01004862]
[1759583743664,0.002,4502.0,4501.9,9.20152762]
[1759583744074,0.002,4502.0,4501.9,36.87609962]
[1759583744311,0.002,4502.0,4501.9,37.07592962]
[1759583744506,0.002,4502.0,4501.9,30.06583862]
[1759583744708,0.002,4502.0,4501.9,23.70152762]
[1759583744864,0.002,4502.0,4501.9,44.60830962]
[1759583745913,0.002,4502.0,4501.9,51.67874262]
[1759583746074,0.002,4502.0,4501.9,47.33682562]
[1759583746470,0.002,4502.0,4501.9,48.91431878]
[1759583747010,0.002,4502.2,4502.1,2.85478566]
[1759583747292,0.002,4502.2,4502.1,39.64082684]
[1759583747455,0.002,4502.2,4502.1,40.06331499]
[1759583747658,0.002,4502.7,4502.6,2.85453901]
[1759583747864,0.002,4502.7,4502.6,38.06367068]
[1759583748109,0.002,4502.7,4502.6,40.87498027]
[1759583748319,0.002,4502.7,4502.6,37.92328027]
[1759583748476,0.002,4502.7,4502.6,32.85412627]
[1759583748810,0.002,4502.7,4502.6,45.72433899]
[1759583749607,0.4519,4502.7,4502.6,38.44855799]
[1759583749813,0.4519,4502.7,4502.6,40.92448999]
[1759583750012,0.4519,4502.7,4502.6,38.41748999]
[1759583750331,0.4519,4502.7,4502.6,40.92448999]
[1759583750534,0.4519,4502.7,4502.6,40.37357399]
[1759583750934,0.4519,4502.7,4502.6,40.37897399]
[1759583751880,0.4519,4502.7,4502.6,40.37407399]
[1759583752823,0.4519,4502.7,4502.6,37.95400598]
[1759583753430,0.002,4502.7,4502.6,41.35777975]
[1759583753788,0.467,4502.7,4502.6,41.81509199]
[1759583753987,0.467,4502.7,4502.6,41.03709199]
[1759583754399,0.467,4502.7,4502.6,42.21992675]
[1759583754688,0.467,4502.7,4502.6,41.69690375]
[1759583754889,0.467,4502.7,4502.6,42.74927775]
[1759583755134,0.467,4502.7,4502.6,40.52833874]
[1759583755301,0.467,4502.7,4502.6,20.1518]
[1759583756324,0.467,4502.7,4502.6,22.37273901]
[1759583756760,0.467,4502.7,4502.6,20.1518]
[1759583756921,0.467,4502.7,4502.6,5.0182]
[1759583757424,0.467,4502.7,4502.6,2.6182]
[1759583757616,0.467,4502.7,4502.6,2.507]
[1759583757838,2.22093901,4502.6,4502.5,0.001]
[1759583758034,0.467,4502.7,4502.5,2.508]
[1759583758224,0.465,4502.6,4502.5,2.508]
[1759583759533,0.465,4502.6,4502.5,2.53020988]
[1759583760368,0.465,4502.6,4502.5,2.508]
[1759583760580,0.465,4502.6,4502.5,0.001]
[1759583760864,0.465,4502.6,4502.5,2.508]
[1759583761624,2.68593901,4502.6,4502.5,2.508]
[1759583761849,3.17781206,4502.6,4502.5,2.508]
[1759583762047,0.95687305,4502.6,4502.5,2.508]
[1759583762367,0.5762,4502.6,4502.5,2.508]
[1759583762826,2.79713901,4502.6,4502.5,2.508]
[1759583763248,0.5762,4502.6,4502.5,2.508]
[1759583764830,2.81379831,4502.6,4502.5,2.508]
[1759583765031,2.79713901,4502.6,4502.5,2.508]
[1759583767454,3.30180411,4502.6,4502.5,2.508]
[1759583768349,1.0808651,4502.6,4502.5,2.508]
[1759583768679,2.79713901,4502.6,4502.5,2.508]
[1759583769352,0.5762,4502.6,4502.5,2.508]
[1759583770669,0.002,4502.7,4502.5,2.508]
[1759583770871,0.002,4502.7,4502.6,0.02220939]
[1759583772675,0.002,4502.7,4502.6,0.48250939]
[1759583773011,0.002,4502.7,4502.6,1.11610939]
[1759583773211,0.002,4502.7,4502.6,1.89612213]
[1759583773511,0.002,4502.7,4502.6,1.60084033]
[1759583773687,0.002,4502.7,4502.6,1.57863094]
[1759583773854,0.002,4502.7,4502.6,0.7448]
[1759583774270,0.002,4502.7,4502.6,15.2448]
[1759583778699,0.467,4502.7,4502.6,14.6112]
[1759583779011,2.22093901,4502.6,4502.5,2.508]
[1759583779212,2.68593901,4502.6,4502.5,2.508]
[1759583780886,2.79713901,4502.6,4502.5,2.508]
[1759583781217,2.79713901,4502.6,4502.5,0.001]
[1759583781385,3.30180353,4502.6,4502.5,2.508]
[1759583782326,0.5762,4502.6,4502.5,2.508]
[1759583782635,2.79713901,4502.6,4502.5,2.508]
[1759583784634,2.68593901,4502.6,4502.5,0.001]
[1759583784933,3.3526479,4502.6,4502.5,0.001]
[1759583785083,3.91286327,4502.6,4502.5,0.001]
[1759583785283,3.91286327,4502.6,4502.5,2.508]
[1759583785284,3.24615438,4502.6,4502.5,2.508]
[1759583785483,3.91279956,4502.6,4502.5,2.508]
[1759583788401,3.91279956,4502.6,4502.5,0.001]
[1759583790123,6.41979956,4502.6,4502.5,0.001]
[1759583791540,6.42179956,4502.6,4502.5,0.001]
[1759583793638,11.50025599,4502.6,4502.5,0.001]
[1759583794047,14.53385599,4502.6,4502.5,0.001]
[1759583794726,14.64505599,4502.6,4502.5,0.001]
[1759583796329,12.13805599,4502.6,4502.5,0.001]
[1759583796528,14.64505599,4502.6,4502.5,0.001]
[1759583799356,2.22143237,4501.6,4501.5,1e-08]
[1759583799651,4.74509167,4501.6,4501.5,1e-08]